fUST/lending_fUST_20250726
["ID","MTS","AMOUNT","RATE_DAILY","PERIOD"]
[374925529,1753470640096,-460.0,0.00021814,2]
[374925530,1753470640109,-460.0,0.00021814,2]
[374925531,1753470640119,-460.0,0.00021815,2]
[374925532,1753470640129,-460.0,0.00021815,2]
[374925533,1753470640140,-449.714,0.00021815,2]
[374925534,1753470640151,-460.0,0.00021815,2]
[374925535,1753470640170,-460.0,0.00021815,2]
[374925536,1753470640184,-312.16666667,0.00021816,3]
[374925537,1753470640197,-712.37,0.00021855,2]
[374925538,1753470640209,-888.0,0.00021917,2]
[374925539,1753470640222,-460.0,0.00022087,2]
[374925540,1753470640234,-460.0,0.00022087,2]
[374925541,1753470640247,-460.0,0.00022087,2]
[374925542,1753470640259,-508.42742522,0.00022087,2]
[374925543,1753470640271,-460.0,0.00022087,2]
[374925544,1753470640282,-460.0,0.00022088,2]
[374925545,1753470640292,-460.0,0.00022089,2]
[374925546,1753470640304,-460.0,0.00022089,2]
[374925547,1753470640315,-460.0,0.00022361,2]
[374925548,1753470640327,-460.0,0.00022361,2]
[374925549,1753470640338,-460.0,0.00022361,2]
[374925550,1753470640349,-460.0,0.00022361,2]
[374925551,1753470640361,-460.0,0.00022362,2]
[374925552,1753470640372,-460.0,0.00022363,2]
[374925553,1753470640383,-357.59973154,0.00022363,2]
[374925554,1753470640401,-170.33538534,0.00022422,2]
[374925555,1753470640413,-648.0,0.00022523,2]
[374925556,1753470640425,-2157.0,0.00022523,2]
[374925557,1753470640439,-969.0,0.00022523,2]
[374925558,1753470640451,-407.0,0.00022523,2]
[374925559,1753470640463,-421.487,0.00022523,2]
[374925560,1753470640476,-460.0,0.00022635,2]
[374925561,1753470640488,-460.0,0.00022635,2]
[374925562,1753470640499,-460.0,0.00022635,2]
[374925563,1753470640510,-523.18,0.00022635,2]
[374925564,1753470640522,-460.0,0.00022636,2]
[374925565,1753470640533,-460.0,0.00022637,2]
[374925566,1753470640544,-231.28369723,0.00022794,2]
[374925567,1753470640555,-460.0,0.00022909,2]
[374925568,1753470640566,-360.55474401,0.00022909,2]
[374925569,1753470640577,-364.13730409,0.00022909,2]
[374925570,1753470640587,-460.0,0.0002291,2]
[374925571,1753470640598,-460.0,0.00022911,2]
[374925572,1753470640608,-170.3353853,0.00022979,2]
[374925573,1753470640622,-328.46,0.00023,2]
[374925574,1753470640633,-160.0,0.00023,2]
[374925575,1753470640645,-460.0,0.00023183,2]
[374925576,1753470640657,-289.012408,0.00023184,2]
[374925577,1753470640668,-460.0,0.00023185,2]
[374925578,1753470640679,-500.0,0.00023256,2]
[374925579,1753470640691,-460.0,0.00023457,2]
[374925580,1753470640703,-460.0,0.00023459,2]
[374925581,1753470640714,-170.3353853,0.00023536,2]
[374925582,1753470640725,-1068.56,0.00023677,2]
[374925583,1753470640736,-460.0,0.00023731,2]
[374925584,1753470640748,-460.0,0.00023733,2]
[374925585,1753470640760,-460.0,0.00024005,2]
[374925586,1753470640771,-460.0,0.00024007,2]
[374925587,1753470640781,-500.0,0.00024044,2]
[374925588,1753470640791,-170.3353853,0.00024094,2]
[374925589,1753470640803,-3221.13901528,0.00024109,7]
[374925590,1753470640816,-239.84119403,0.00024163,2]
[374925591,1753470640828,-159.9857365,0.00024247,2]
[374925592,1753470640842,-356.6103866,0.00024247,2]
[374925593,1753470640857,-178.3051933,0.00024247,2]
[374925594,1753470640867,-159.7902229,0.00024247,2]
[374925595,1753470640877,-460.0,0.00024279,2]
[374925596,1753470640888,-460.0,0.00024281,2]
[374925597,1753470640899,-228.727764,0.0002433,8]
[374925598,1753470640911,-500.0,0.00024358,2]
[374925599,1753470640921,-888.0,0.00024383,4]
[374925600,1753470640932,-500.0,0.00024481,2]
[374925601,1753470640944,-500.0,0.00024492,2]
[374925602,1753470640955,-151.162714,0.00024525,30]
[374925603,1753470640966,-500.0,0.00024544,2]
[374925604,1753470640977,-460.0,0.00024553,2]
[374925605,1753470640988,-460.0,0.00024555,2]
[374925606,1753470641000,-2200.0,0.00024567,2]
[374925607,1753470641011,-170.3353853,0.00024651,2]
[374925608,1753470641022,-151.0,0.00024658,2]
[374925609,1753470641033,-151.0,0.00024658,2]
[374925610,1753470641046,-764.0,0.00024658,2]
[374925611,1753470641057,-151.0,0.00024658,2]
[374925612,1753470641068,-151.0,0.00024658,2]
[374925613,1753470641080,-151.0,0.00024658,2]
[374925614,1753470641090,-151.0,0.00024658,2]
[374925615,1753470641100,-151.0,0.00024658,2]
[374925616,1753470641110,-151.0,0.00024658,2]
[374925617,1753470641120,-500.0,0.00024658,2]
[374925618,1753470641130,-151.0,0.00024658,2]
[374925619,1753470641143,-277.76240389,0.00024658,2]
[374925620,1753470641154,-151.0,0.00024658,2]
[374925621,1753470641164,-481.0,0.00024658,2]
[374925622,1753470641175,-151.162714,0.00024679,10]
[374925623,1753470641186,-519.6191463,0.00024776,14]
[374925624,1753470641197,-2000.0,0.000248,2]
[374925625,1753470641208,-150.0,0.000248,5]
[374925626,1753470641218,-889.69199243,0.00024805,2]
[374925627,1753470641230,-180.14622105,0.00024827,2]
[374925628,1753470641241,-460.0,0.00024829,2]
[374925629,1753470641253,-500.0,0.00024873,2]
[374925630,1753470641265,-160.0,0.00024889,3]
[374925631,1753470641275,-11535.98152138,0.00024889,3]
[374925632,1753470641285,-312.16666667,0.0002489,10]
[374925633,1753470641296,-526.33361954,0.0002489,10]
[374925634,1753470641306,-6698.1,0.0002489,10]
[374925635,1753470641316,-287.88,0.00024892,3]
[374925636,1753470641326,-863.64,0.00024892,3]
[374925637,1753470641337,-151.162714,0.00024895,2]
[374925638,1753470641347,-460.0,0.00024899,2]
[374925639,1753470641358,-460.0,0.00024899,2]
[374925640,1753470641369,-460.0,0.00024899,2]
[374925641,1753470641380,-11603.97880253,0.000249,2]
[374925642,1753470641458,-359.50100004,0.000249,2]
[374925643,1753470641472,-2932.94096035,0.000249,2]
[374925644,1753470641485,-366.0670543,0.000249,2]
[374925645,1753470641497,-892.4973625,0.000249,2]
[374925732,1753470643036,-160.0,0.00021536,2]
[374925733,1753470643047,-33.83482028,0.000249,2]
[374925734,1753470643058,-448.17097156,0.000249,7]
[374926835,1753471613149,391.366834,0.00013699,2]
[374926912,1753471832142,-150.0,0.000189,2]
[374926914,1753471832152,-460.0,0.00019178,2]
[374926916,1753471832162,-44.86091982,0.000199,2]
[374926921,1753471832196,-722.85,0.000199,2]
[374927473,1753471838252,-74364.02544997,0.000199,2]
[374927475,1753471838262,-538.03744317,0.0002,2]
[374927477,1753471838272,-9387.05962993,0.0002,2]
[374927479,1753471838281,-3197.0767799,0.0002,2]
[374927481,1753471838291,-363.01083078,0.0002,2]
[374927483,1753471838300,-32782.22013668,0.0002,2]
[374927552,1753471840215,-4838.03612676,0.0002,2]
[374927553,1753471840225,-331.77,0.00020031,2]
[374927555,1753471840235,-391.366834,0.00020187,2]
[374927558,1753471840244,-571.29571034,0.000204,2]
[374927560,1753471840254,-215.0738,0.00021051,2]
[374927561,1753471840265,-840.4016166,0.00021064,2]
[374927562,1753471840274,-160.0,0.00021064,2]
[374927563,1753471840284,-160.0,0.00021064,2]
[374927564,1753471840293,-160.0,0.00021064,2]
[374927565,1753471840303,-160.0,0.00021064,2]
[374927566,1753471840312,-214.7599002,0.00021064,2]
[374927567,1753471840322,-215.93003454,0.00021064,2]
[374927568,1753471840331,-231.20877768,0.00021064,2]
[374927569,1753471840341,-160.0,0.00021064,2]
[374927570,1753471840350,-160.0,0.00021064,2]
[374927571,1753471840359,-160.0,0.00021064,2]
[374927572,1753471840370,-160.0,0.00021064,2]
[374927573,1753471840379,-476.88235691,0.00021064,2]
[374927574,1753471840387,-500.0,0.00021064,2]
[374927575,1753471840396,-492.82213814,0.00021451,2]
[374927576,1753471840406,-312.16666667,0.00021763,2]
[374927577,1753471840415,-160.0,0.00021807,2]
[374927578,1753471840425,-547.06,0.00021813,2]
[374927579,1753471840435,-460.0,0.00021813,2]
[374927580,1753471840445,-460.0,0.00021813,2]
[374927581,1753471840455,-460.0,0.00021813,2]
[374927582,1753471840464,-460.0,0.00021813,2]
[374927583,1753471840474,-460.0,0.00021813,2]
[374927584,1753471840484,-460.0,0.00021813,2]
[374927585,1753471840493,-460.0,0.00021813,2]
[374927586,1753471840503,-460.0,0.00021813,2]
[374927587,1753471840513,-237.26668909,0.00021813,2]
[374927588,1753471840522,-460.0,0.00021813,2]
[374927589,1753471840532,-460.0,0.00021813,2]
[374927590,1753471840541,-460.0,0.00021813,2]
[374927591,1753471840551,-460.0,0.00021813,2]
[374927592,1753471840561,-460.0,0.00021813,2]
[374927593,1753471840572,-460.0,0.00021813,2]
[374927594,1753471840581,-460.0,0.00021813,2]
[374927595,1753471840591,-460.0,0.00021813,2]
[374927596,1753471840601,-460.0,0.00021813,2]
[374927597,1753471840610,-534.64,0.00021813,2]
[374927598,1753471840620,-460.0,0.00021813,2]
[374927599,1753471840630,-460.0,0.00021813,2]
[374927600,1753471840639,-500.0,0.00021814,2]
[374927601,1753471840648,-555.44254703,0.00021814,2]
[374927602,1753471840658,-460.0,0.00021814,2]
[374927603,1753471840667,-460.0,0.00021814,2]
[374927604,1753471840677,-534.64648995,0.00021814,2]
[374927605,1753471840686,-460.0,0.00021814,2]
[374927606,1753471840695,-460.0,0.00021814,2]
[374927607,1753471840705,-460.0,0.00021814,2]
[374927608,1753471840714,-478.30509695,0.00021814,2]
[374927609,1753471840724,-460.0,0.00021814,2]
[374927610,1753471840736,-460.0,0.00021814,2]
[374927611,1753471840745,-460.0,0.00021814,2]
[374927612,1753471840755,-460.0,0.00021814,2]
[374927613,1753471840765,-460.0,0.00021814,2]
[374927614,1753471840775,-460.0,0.00021814,2]
[374927615,1753471840784,-460.0,0.00021814,2]
[374927616,1753471840794,-460.0,0.00021814,2]
[374927617,1753471840807,-460.0,0.00021814,2]
[374927618,1753471840818,-460.0,0.00021814,2]
[374927619,1753471840827,-460.0,0.00021814,2]
[374927620,1753471840836,-460.0,0.00021814,2]
[374927621,1753471840845,-460.0,0.00021814,2]
[374927622,1753471840854,-460.0,0.00021814,2]
[374927623,1753471840864,-460.0,0.00021814,2]
[374927624,1753471840874,-500.0,0.00021825,2]
[374927625,1753471840883,-500.0,0.00021825,2]
[374927626,1753471840893,-663.54,0.00021852,2]
[374927627,1753471840902,-956.37,0.00022,7]
[374927628,1753471840912,-178.0,0.00022,2]
[374927629,1753471840922,-460.0,0.00022086,2]
[374927630,1753471840931,-460.0,0.00022086,2]
[374927631,1753471840940,-460.0,0.00022086,2]
[374927632,1753471840950,-460.0,0.00022086,2]
[374927633,1753471840961,-460.0,0.00022086,2]
[374927634,1753471840970,-460.0,0.00022086,2]
[374927635,1753471840980,-460.0,0.00022086,2]
[374927636,1753471840990,-460.0,0.00022086,2]
[374927637,1753471840999,-460.0,0.00022086,2]
[374927638,1753471841009,-460.0,0.00022086,2]
[374927639,1753471841019,-460.0,0.00022086,2]
[374927640,1753471841028,-460.0,0.00022086,2]
[374927641,1753471841038,-460.0,0.00022086,2]
[374927642,1753471841048,-460.0,0.00022086,2]
[374927643,1753471841057,-460.0,0.00022086,2]
[374927644,1753471841067,-460.0,0.00022086,2]
[374927645,1753471841077,-460.0,0.00022086,2]
[374927646,1753471841086,-460.0,0.00022086,2]
[374927647,1753471841096,-460.0,0.00022086,2]
[374927648,1753471841105,-460.0,0.00022086,2]
[374927649,1753471841115,-460.0,0.00022086,2]
[374927650,1753471841225,-361.78534963,0.00022086,2]
[374927651,1753471841265,-355.0389995,0.00022086,2]
[374927652,1753471841275,-460.0,0.00022086,2]
[374927653,1753471841285,-547.06,0.00022087,2]
[374927654,1753471841295,-460.0,0.00022087,2]
[374927655,1753471841305,-316.3,0.00022087,2]
[374927656,1753471841314,-460.0,0.00022087,2]
[374927657,1753471841324,-460.0,0.00022087,2]
[374927658,1753471841334,-460.0,0.00022087,2]
[374927659,1753471841344,-159.46,0.00022087,2]
[374927660,1753471841354,-460.0,0.00022087,2]
[374927661,1753471841363,-460.0,0.00022087,2]
[374927662,1753471841374,-460.0,0.00022087,2]
[374927663,1753471841383,-460.0,0.00022087,2]
[374927664,1753471841393,-460.0,0.00022087,2]
[374927665,1753471841403,-460.0,0.00022087,2]
[374927666,1753471841413,-460.0,0.00022087,2]
[374927667,1753471841421,-460.0,0.00022087,2]
[374927668,1753471841431,-460.0,0.00022088,2]
[374927669,1753471841440,-460.0,0.00022088,2]
[374927670,1753471841449,-460.0,0.00022088,2]
[374927671,1753471841459,-192.9131683,0.00022088,2]
[374927672,1753471841468,-460.0,0.00022088,2]
[374927673,1753471841479,-460.0,0.00022088,2]
[374927674,1753471841488,-460.0,0.00022088,2]
[374927675,1753471841497,-460.0,0.00022088,2]
[374927676,1753471841507,-506.51457,0.00022294,2]
[374927677,1753471841517,-501.866,0.0002236,2]
[374927678,1753471841526,-460.0,0.0002236,2]
[374927679,1753471841536,-460.0,0.0002236,2]
[374927680,1753471841546,-460.0,0.0002236,2]
[374927681,1753471841557,-460.0,0.0002236,2]
[374927682,1753471841567,-460.0,0.0002236,2]
[374927683,1753471841577,-460.0,0.0002236,2]
[374927684,1753471841586,-460.0,0.0002236,2]
[374927685,1753471841596,-540.06,0.0002236,2]
[374927686,1753471841606,-460.0,0.0002236,2]
[374927687,1753471841616,-547.06,0.00022361,2]
[374927688,1753471841627,-460.0,0.00022361,2]
[374927689,1753471841637,-460.0,0.00022361,2]
[374927690,1753471841647,-460.0,0.00022361,2]
[374927691,1753471841657,-460.0,0.00022361,2]
[374927692,1753471841667,-460.0,0.00022361,2]
[374927693,1753471841678,-494.89,0.00022361,2]
[374927694,1753471841687,-277.37,0.00022361,2]
[374927695,1753471841698,-460.0,0.00022361,2]
[374927696,1753471841707,-226.41,0.00022361,2]
[374927697,1753471841716,-460.0,0.00022361,2]
[374927698,1753471841727,-460.0,0.00022361,2]
[374927699,1753471841741,-460.0,0.00022362,2]
[374927700,1753471841750,-460.0,0.00022362,2]
[374927701,1753471841764,-460.0,0.00022362,2]
[374927702,1753471841774,-500.0,0.00022373,2]
[374927703,1753471841786,-1000.0,0.00022373,2]
[374927704,1753471841796,-223.0315306,0.0002242,2]
[374927705,1753471841807,-393.6865947,0.00022634,2]
[374927706,1753471841817,-460.0,0.00022634,2]
[374927707,1753471841827,-460.0,0.00022634,2]
[374927708,1753471841837,-460.0,0.00022634,2]
[374927709,1753471841847,-460.0,0.00022634,2]
[374927710,1753471841857,-460.0,0.00022634,2]
[374927711,1753471841867,-547.06,0.00022635,2]
[374927712,1753471841878,-460.0,0.00022635,2]
[374927713,1753471841888,-94.17032815,0.00022635,2]
[374928099,1753471846613,-460.0,0.00021813,2]
[374928100,1753471846622,-460.0,0.00022086,2]
[374928101,1753471846633,-460.0,0.00022087,2]
[374928102,1753471846642,-365.82967185,0.00022635,2]
[374928103,1753471846651,-460.0,0.00022635,2]
[374928104,1753471846661,-460.0,0.00022635,2]
[374928105,1753471846670,-460.0,0.00022635,2]
[374928106,1753471846679,-460.0,0.00022635,2]
[374928107,1753471846688,-460.0,0.00022635,2]
[374928108,1753471846698,-249.95,0.00022636,2]
[374928109,1753471846707,-156.29,0.00022701,3]
[374928110,1753471846716,-468.92,0.00022701,3]
[374928111,1753471846726,-2157.0,0.00022711,2]
[374928112,1753471846736,-969.0,0.00022711,2]
[374928113,1753471846747,-222.902,0.00022711,2]
[374928114,1753471846755,-421.487,0.00022711,2]
[374928115,1753471846765,-648.0,0.00022711,2]
[374928116,1753471846774,-312.59,0.00022898,3]
[374928117,1753471846784,-460.0,0.00022908,2]
[374928118,1753471846793,-283.28,0.00022908,2]
[374928119,1753471846802,-343.43,0.00022908,2]
[374928120,1753471846811,-547.06,0.00022909,2]
[374928121,1753471846820,-460.0,0.00022909,2]
[374928122,1753471846829,-460.0,0.00022909,2]
[374928123,1753471846838,-460.0,0.00022909,2]
[374928124,1753471846848,-460.0,0.00022909,2]
[374928125,1753471846857,-460.0,0.00022909,2]
[374928126,1753471846866,-416.31,0.00022909,2]
[374928128,1753471846877,-460.0,0.00022909,2]
[374928129,1753471846887,-295.61,0.00023,2]
[374928130,1753471846898,-160.0,0.00023011,2]
[374928131,1753471846909,-500.0,0.00023125,2]
[374928133,1753471846918,-165.91715819,0.00023125,2]
[374928135,1753471846928,-500.0,0.00023125,2]
[374928137,1753471846938,-500.0,0.00023125,2]
[374928139,1753471846947,-500.0,0.00023125,2]
[374928141,1753471846957,-500.0,0.00023125,2]
[374928143,1753471846967,-500.0,0.00023125,2]
[374928145,1753471846977,-495.16783004,0.00023125,2]
[374928147,1753471846987,-500.0,0.00023125,2]
[374928149,1753471846996,-500.0,0.00023125,2]
[374928151,1753471847005,-500.0,0.00023125,2]
[374928153,1753471847015,-500.0,0.00023125,2]
[374928155,1753471847025,-500.0,0.00023125,2]
[374928157,1753471847035,-460.0,0.00023182,2]
[374928159,1753471847045,-547.06,0.00023183,2]
[374928161,1753471847055,-460.0,0.00023183,2]
[374928163,1753471847064,-460.0,0.00023183,2]
[374928165,1753471847074,-460.0,0.00023183,2]
[374928167,1753471847083,-460.0,0.00023183,2]
[374928169,1753471847093,-460.0,0.00023183,2]
[374928171,1753471847103,-460.0,0.00023183,2]
[374928173,1753471847112,-500.0,0.00023256,2]
[374928175,1753471847122,-500.0,0.00023286,2]
[374928177,1753471847131,-500.89543393,0.00023443,2]
[374928179,1753471847141,-500.0,0.00023443,2]
[374928181,1753471847151,-501.11731388,0.00023443,2]
[374928183,1753471847160,-500.0,0.00023443,2]
[374928185,1753471847170,-366.05189118,0.00023456,2]
[374928187,1753471847179,-547.06,0.00023457,2]
[374928189,1753471847189,-460.0,0.00023457,2]
[374928191,1753471847198,-460.0,0.00023457,2]
[374928193,1753471847207,-460.0,0.00023457,2]
[374928195,1753471847217,-460.0,0.00023457,2]
[374928197,1753471847226,-460.0,0.00023457,2]
[374928199,1753471847235,-460.0,0.00023457,2]
[374928201,1753471847244,-260.0,0.00023559,2]
[374928203,1753471847253,-995.31,0.00023673,2]
[374928205,1753471847263,-547.06,0.00023731,2]
[374928207,1753471847272,-460.0,0.00023731,2]
[374928209,1753471847282,-460.0,0.00023731,2]
[374928211,1753471847291,-460.0,0.00023731,2]
[374928213,1753471847300,-460.0,0.00023731,2]
[374928215,1753471847309,-460.0,0.00023731,2]
[374928217,1753471847319,-460.0,0.00023731,2]
[374928218,1753471847328,-231.28369723,0.00023789,2]
[374928220,1753471847337,-956.37,0.000238,7]
[374928222,1753471847347,-160.0,0.00023833,3]
[374928224,1753471847357,-13000.0,0.0002398,2]
[374928226,1753471847366,-547.06,0.00024005,2]
[374928229,1753471847376,-460.0,0.00024005,2]
[374928231,1753471847386,-460.0,0.00024005,2]
[374928233,1753471847396,-460.0,0.00024005,2]
[374928235,1753471847405,-460.0,0.00024005,2]
[374928236,1753471847415,-460.0,0.00024005,2]
[374928238,1753471847424,-460.0,0.00024005,2]
[374928240,1753471847434,-312.58,0.00024071,3]
[374928242,1753471847443,-500.0,0.0002409,2]
[374928244,1753471847452,-360.0,0.00024107,2]
[374928246,1753471847462,-159.9857365,0.00024247,2]
[374928248,1753471847471,-625.18,0.00024268,3]
[374928250,1753471847481,-547.06,0.00024279,2]
[374928252,1753471847492,-514.7,0.00024279,2]
[374928255,1753471847501,-460.0,0.00024279,2]
[374928256,1753471847511,-460.0,0.00024279,2]
[374928259,1753471847522,-460.0,0.00024279,2]
[374928260,1753471847534,-460.0,0.00024279,2]
[374928262,1753471847544,-460.0,0.00024279,2]
[374928264,1753471847555,-190.60647,0.00024401,8]
[374928267,1753471847567,-547.06,0.00024553,2]
[374928268,1753471847578,-460.0,0.00024553,2]
[374928270,1753471847588,-460.0,0.00024553,2]
[374928272,1753471847598,-460.0,0.00024553,2]
[374928274,1753471847608,-460.0,0.00024553,2]
[374928276,1753471847617,-3432.7107726,0.00024595,2]
[374928278,1753471847628,-500.0,0.0002465,2]
[374928280,1753471847637,-460.0,0.00024655,2]
[374928282,1753471847647,-293.48917632,0.00024658,2]
[374928284,1753471847656,-151.0,0.00024658,2]
[374928286,1753471847665,-732.0,0.00024658,2]
[374928288,1753471847675,-151.0,0.00024658,2]
[374928290,1753471847686,-151.0,0.00024658,2]
[374928292,1753471847695,-151.0,0.00024658,2]
[374928294,1753471847704,-151.0,0.00024658,2]
[374928296,1753471847714,-151.0,0.00024658,2]
[374928298,1753471847723,-151.0,0.00024658,2]
[374928300,1753471847733,-500.0,0.00024658,2]
[374928302,1753471847744,-461.0,0.00024658,2]
[374928304,1753471847753,-800.0,0.00024714,2]
[374928306,1753471847763,-2200.0,0.00024739,2]
[374928308,1753471847772,-800.0,0.00024774,2]
[374928310,1753471847782,-169.7560809,0.0002479,2]
[374928312,1753471847791,-2038.0,0.000248,2]
[374928313,1753471847800,-1322.31291531,0.000248,2]
[374928316,1753471847810,-1767.03568954,0.000248,2]
[374928317,1753471847821,-1000.0,0.000248,2]
[374928319,1753471847830,-169.75608086,0.00024818,2]
[374928322,1753471847840,-547.06,0.00024827,2]
[374928324,1753471847850,-460.0,0.00024827,2]
[374928325,1753471847859,-460.0,0.00024827,2]
[374928327,1753471847869,-460.0,0.00024827,2]
[374928329,1753471847879,-460.0,0.00024827,2]
[374928331,1753471847889,-500.0,0.00024832,2]
[374928333,1753471847898,-169.75608086,0.00024845,2]
[374928335,1753471847909,-720.27411758,0.00024857,2]
[374928337,1753471847919,-169.75608086,0.00024873,2]
[374928339,1753471847928,-460.0,0.00024884,2]
[374928341,1753471847937,-460.0,0.00024884,2]
[374928343,1753471847947,-460.0,0.00024884,2]
[374928345,1753471847956,-460.0,0.00024884,2]
[374928347,1753471847966,-887.6,0.00024884,2]
[374928349,1753471847975,-460.0,0.00024884,2]
[374928351,1753471847984,-460.0,0.00024884,2]
[374928353,1753471847994,-460.0,0.00024884,2]
[374928355,1753471848003,-460.0,0.00024884,2]
[374928357,1753471848012,-900.0,0.00024885,2]
[374928359,1753471848024,-564.6643063,0.00024889,2]
[374928362,1753471848034,-460.0,0.00024889,2]
[374928364,1753471848044,-460.0,0.00024889,2]
[374928365,1753471848054,-182.90484529,0.00024889,2]
[374928367,1753471848063,-460.0,0.00024889,2]
[374928369,1753471848073,-526.33361954,0.00024889,10]
[374928371,1753471848082,-151.162715,0.0002489,10]
[374928373,1753471848091,-575.76,0.0002489,3]
[374928376,1753471848103,-460.0,0.00024899,2]
[374928378,1753471848112,-460.0,0.00024899,2]
[374928380,1753471848122,-460.0,0.00024899,2]
[374928382,1753471848133,-460.0,0.00024899,2]
[374928383,1753471848142,-460.0,0.00024899,2]
[374928385,1753471848151,-544.632193,0.00024899,2]
[374928388,1753471848161,-1497.9,0.00024899,2]
[374928389,1753471848171,-7215.38902844,0.000249,7]
[374928392,1753471848180,-1684.43,0.000249,7]
[374928394,1753471848190,-290.93839524,0.000249,2]
[374928396,1753471848201,-14569.94,0.000249,2]
[374928398,1753471848210,-151.162715,0.000249,4]
[374928400,1753471848220,-324.0,0.000249,3]
[374928401,1753471848230,-324.0,0.000249,3]
[374928403,1753471848239,-194.66375418,0.000249,3]
[374928405,1753471848248,-209.0,0.000249,2]
[374928407,1753471848258,-312.16666667,0.000249,7]
[374928409,1753471848267,-169.75608086,0.000249,2]
[374928411,1753471848277,-232706.01919689,0.000249,2]
[374938809,1753472071615,6295.83092134,0.00026027,120]
[374938814,1753472533732,152.0,0.00017,2]
[374938821,1753472772995,352.23015,0.00013699,2]
[374938862,1753473032513,-170.3353853,0.00019798,2]
[374938863,1753473032523,-312.16666667,0.0001987,2]
[374938864,1753473032532,-500.0,0.00019873,2]
[374938865,1753473032541,-460.0,0.00019897,2]
[374938866,1753473032550,-460.0,0.00019897,2]
[374938867,1753473032559,-460.0,0.00019897,2]
[374938868,1753473032568,-460.0,0.00019897,2]
[374938869,1753473032576,-460.0,0.00019897,2]
[374938870,1753473032586,-460.0,0.00019898,2]
[374938871,1753473032595,-367.59117734,0.00019898,2]
[374938872,1753473032604,-460.0,0.00019898,2]
[374938873,1753473032613,-461.43341498,0.00019898,2]
[374938875,1753473032622,-460.0,0.00019898,2]
[374938876,1753473032631,-460.0,0.00019898,2]
[374938877,1753473032640,-460.0,0.00019898,2]
[374938878,1753473032649,-460.0,0.00019898,2]
[374938880,1753473032658,-460.0,0.00019898,2]
[374938882,1753473032667,-460.0,0.00019898,2]
[374938883,1753473032677,-460.0,0.00019898,2]
[374938884,1753473032686,-258.98915874,0.00019898,2]
[374939349,1753473038218,-500.0,0.00019889,2]
[374939351,1753473038228,-500.0,0.00019889,2]
[374939353,1753473038238,-427.05890356,0.00019889,2]
[374939355,1753473038250,-186.19523037,0.00019889,2]
[374939357,1753473038259,-500.0,0.00019889,2]
[374939359,1753473038269,-500.0,0.00019889,2]
[374939361,1753473038279,-500.0,0.00019889,2]
[374939363,1753473038289,-542.60389005,0.00019889,2]
[374939365,1753473038298,-385.96782821,0.00019889,2]
[374939367,1753473038308,-500.0,0.00019889,2]
[374939369,1753473038318,-500.0,0.00019889,2]
[374939371,1753473038327,-422.11602545,0.00019889,2]
[374939373,1753473038337,-500.0,0.00019889,2]
[374939375,1753473038347,-500.0,0.00019889,2]
[374939377,1753473038357,-203.27069904,0.00019889,2]